bitfinex-derivatives/quotes_BTCF0:USTF0_20250501
["timestamp","ask_amount","ask_price","bid_price","bid_amount"]
[1746090400163,1.92161566,95203.0,95202.0,1.97982359]
[1746090400462,1.94283566,95203.0,95202.0,1.97982359]
[1746090403366,0.50406,95203.0,95202.0,1.97982359]
[1746090403960,0.7140658,95203.0,95202.0,1.97982359]
[1746090404257,0.5921058,95203.0,95202.0,1.97982359]
[1746090404457,0.38206,95203.0,95202.0,1.97982359]
[1746090406169,0.5921058,95203.0,95202.0,1.97982359]
[1746090406361,0.6236658,95203.0,95202.0,2.01212359]
[1746090406669,0.6237058,95203.0,95202.0,2.01212359]
[1746090416173,0.7457058,95203.0,95202.0,2.01212359]
[1746090417678,0.7457058,95203.0,95202.0,1.97982359]
[1746090417876,0.7764058,95203.0,95202.0,1.97982359]
[1746090419172,0.7764058,95203.0,95202.0,1.94762359]
[1746090425874,0.7764058,95203.0,95202.0,1.73757559]
[1746090426178,0.7764058,95203.0,95202.0,1.94762359]
[1746090427279,0.7764058,95203.0,95202.0,0.44762359]
[1746090432481,1.93303995,95203.0,95202.0,0.44762359]
[1746090433077,0.56636,95203.0,95202.0,0.44762359]
[1746090433282,0.7457058,95203.0,95202.0,0.44762359]
[1746090433676,0.7457058,95203.0,95202.0,1.94762359]
[1746090433875,0.7456658,95203.0,95202.0,1.97912359]
[1746090434076,0.7457058,95203.0,95202.0,1.97912359]
[1746090434782,0.7769058,95203.0,95202.0,1.97912359]
[1746090438690,0.7769058,95203.0,95202.0,2.01072359]
[1746090448689,0.20606,95203.0,95202.0,2.01072359]
[1746090448986,0.17482,95203.0,95202.0,2.37152359]
[1746090449187,0.05286,95203.0,95202.0,2.37152359]
[1746090449891,0.05282,95203.0,95202.0,2.37152359]
[1746090450094,0.05286,95203.0,95202.0,2.37152359]
[1746090450280,0.17486,95203.0,95202.0,2.37152359]
[1746090451191,0.05286,95203.0,95202.0,2.37152359]
[1746090456191,0.17486,95203.0,95202.0,2.37152359]
[1746090458102,0.05286,95203.0,95202.0,2.37152359]
[1746090459202,0.17486,95203.0,95202.0,2.37152359]
[1746090462702,0.17486,95203.0,95202.0,2.33992359]
[1746090466908,0.17486,95203.0,95202.0,1.97912359]
[1746090476429,0.17486,95203.0,95202.0,2.19333413]
[1746090478234,0.17486,95203.0,95202.0,2.05219869]
[1746090479232,0.17482,95203.0,95202.0,2.05219869]
[1746090480635,0.17482,95203.0,95202.0,1.83798815]
[1746090488949,0.17482,95203.0,95202.0,1.80648815]
[1746090489246,1.54149995,95203.0,95202.0,1.80648815]
[1746090494147,1.33145415,95203.0,95202.0,1.80648815]
[1746090494551,1.36445415,95203.0,95202.0,1.80648815]
[1746090507351,1.93529995,95203.0,95202.0,0.30648815]
[1746090514949,1.93529995,95203.0,95202.0,1.80648815]
[1746090516961,1.57449995,95203.0,95202.0,1.80648815]
[1746090517361,1.93529995,95203.0,95202.0,1.80648815]
[1746090518564,1.72525415,95203.0,95202.0,1.80648815]
[1746090518755,1.72525415,95203.0,95202.0,1.83708815]
[1746090520252,1.72525415,95203.0,95202.0,1.86728815]
[1746090523166,1.72525415,95203.0,95202.0,2.02792531]
[1746090526967,1.93529995,95203.0,95202.0,1.99772531]
[1746090527856,1.72525415,95203.0,95202.0,1.99772531]
[1746090530070,1.93529995,95203.0,95202.0,1.99772531]
[1746090530370,1.93529995,95203.0,95202.0,1.96712531]
[1746090530871,1.93529995,95203.0,95202.0,0.46712531]
[1746090535576,1.93529995,95203.0,95202.0,0.30648815]
[1746090536375,1.57449995,95203.0,95202.0,0.30648815]
[1746090536576,1.93529995,95203.0,95202.0,0.30648815]
[1746090537680,1.93529995,95203.0,95202.0,0.09644015]
[1746090537871,1.93529995,95203.0,95202.0,0.30648815]
[1746090540378,1.93529995,95203.0,95202.0,0.30548815]
[1746090546081,1.81329995,95203.0,95202.0,0.30548815]
[1746090547083,1.93529995,95203.0,95202.0,0.30548815]
[1746090550591,1.90229995,95203.0,95202.0,0.30548815]
[1746090550892,1.90233995,95203.0,95202.0,0.30548815]
[1746090551082,1.90233995,95203.0,95202.0,0.33878815]
[1746090554087,1.90233995,95203.0,95202.0,0.37258815]
[1746090556391,1.93533995,95203.0,95202.0,0.37258815]
[1746090557192,1.93533995,95203.0,95202.0,0.33928815]
[1746090570196,0.2100569,95199.0,95198.0,0.0525137]
[1746090570497,0.2100569,95199.0,95198.0,0.3125137]
[1746090570685,1.43459105,95199.0,95198.0,0.3125137]
[1746090570882,1.43459105,95199.0,95198.0,0.3444137]
[1746090571088,1.55659105,95199.0,95198.0,0.3444137]
[1746090571295,1.55659105,95199.0,95198.0,0.3474137]
[1746090571496,1.55659105,95199.0,95198.0,0.3504137]
[1746090571696,1.55659105,95199.0,95198.0,0.5604706]
[1746090573195,1.57779105,95199.0,95198.0,0.5604706]
[1746090578302,1.45579105,95199.0,95198.0,0.5604706]
[1746090578510,1.81659105,95199.0,95198.0,0.5604706]
[1746090579194,1.93859105,95199.0,95198.0,0.5604706]
[1746090586609,1.93859105,95199.0,95198.0,2.0604706]
[1746090588311,1.81659105,95199.0,95198.0,2.0604706]
[1746090589118,1.93859105,95199.0,95198.0,2.0604706]
[1746090589414,1.93859105,95199.0,95198.0,2.0285706]
[1746090597419,1.93859105,95199.0,95198.0,1.84962788]
[1746090597610,1.93859105,95199.0,95198.0,1.90214158]
[1746090601520,1.93859105,95199.0,95198.0,1.94217918]
[1746090604722,1.93859105,95199.0,95198.0,1.97627918]
[1746090605920,1.57779105,95199.0,95198.0,1.97627918]
[1746090606222,1.93859105,95199.0,95198.0,1.97627918]
[1746090607826,1.57779105,95199.0,95198.0,1.97627918]
[1746090608018,1.93859105,95199.0,95198.0,1.97627918]
[1746090610216,1.81659105,95199.0,95198.0,1.97627918]
[1746090611627,1.60653415,95199.0,95198.0,1.97627918]
[1746090612129,1.81658885,95199.0,95198.0,1.97627918]
[1746090613329,1.60653415,95199.0,95198.0,1.97627918]
[1746090614127,1.81658885,95199.0,95198.0,1.97627918]
[1746090614831,1.81658885,95199.0,95198.0,0.47627918]
[1746090615330,1.81658885,95199.0,95189.0,0.08145538]
[1746090615331,0.2100767,95192.0,95191.0,0.2625832]
[1746090615516,0.2100767,95192.0,95191.0,0.5325832]
[1746090615721,0.2100767,95189.0,95182.0,0.00157579]
[1746090615921,1.72751085,95189.0,95188.0,0.43424772]
[1746090616233,1.95456685,95189.0,95188.0,0.43424772]
[1746090617732,1.95456685,95189.0,95188.0,0.43624772]
[1746090618125,1.95456685,95189.0,95188.0,0.43724772]
[1746090618527,1.97575685,95189.0,95188.0,0.43724772]
[1746090619031,1.97575685,95189.0,95188.0,0.223]
[1746090619237,1.97575685,95189.0,95188.0,0.10509248]
[1746090622044,2.33655685,95189.0,95188.0,0.10509248]
[1746090624040,2.23150085,95189.0,95188.0,0.10509248]
[1746090631354,2.29850085,95189.0,95188.0,0.10509248]
[1746090635259,2.29854085,95189.0,95188.0,0.10509248]
[1746090640159,1.57694085,95189.0,95188.0,0.10509248]
[1746090640367,2.29854085,95189.0,95188.0,0.10509248]
[1746090641263,1.57694085,95189.0,95188.0,0.10509248]
[1746090641465,2.29854085,95189.0,95188.0,0.10509248]
[1746090649770,2.40561784,95189.0,95188.0,0.10509248]
[1746090653861,2.37197784,95189.0,95188.0,0.10509248]
[1746090654061,2.37201784,95189.0,95188.0,0.10509248]
[1746090654255,2.25001784,95189.0,95188.0,0.10509248]
[1746090654462,2.25001784,95189.0,95188.0,0.17269248]
[1746090657275,2.28181784,95189.0,95188.0,0.17269248]
[1746090658365,2.17474085,95189.0,95188.0,0.17269248]
[1746090661074,2.17474085,95189.0,95188.0,0.38277138]
[1746090661577,0.5921067,95189.0,95188.0,0.38277138]
[1746090661882,0.5920667,95189.0,95188.0,0.38277138]
[1746090662078,0.5921067,95189.0,95188.0,0.50477138]
[1746090662882,0.38203,95189.0,95188.0,0.50477138]
[1746090663176,0.5921067,95189.0,95188.0,0.50477138]
[1746090663477,0.5920667,95189.0,95188.0,0.50477138]
[1746090664070,0.5920667,95189.0,95188.0,2.00477138]
[1746090664368,0.5921067,95189.0,95188.0,2.01530707]
[1746090669682,0.38203,95189.0,95188.0,2.01530707]
[1746090670183,0.5921067,95189.0,95188.0,2.01530707]
[1746090675180,0.5921067,95189.0,95188.0,1.89330707]
[1746090677078,0.5921067,95189.0,95188.0,2.01530707]
[1746090678086,0.5921067,95189.0,95188.0,1.89330707]
[1746090679984,0.38203,95189.0,95188.0,1.89330707]
[1746090680284,0.5921067,95189.0,95188.0,1.89330707]
[1746090682389,0.2313067,95189.0,95188.0,1.89330707]
[1746090683291,0.2635067,95189.0,95188.0,1.89330707]
[1746090686284,0.2966067,95189.0,95188.0,1.89330707]
[1746090690792,0.2966067,95189.0,95188.0,1.88277138]
[1746090690991,0.2966067,95189.0,95188.0,1.84887138]
[1746090691602,0.2966067,95189.0,95188.0,1.85940386]
[1746090692200,0.2966067,95189.0,95188.0,1.84887138]
[1746090693197,0.2966067,95189.0,95188.0,1.81517138]
[1746090694403,0.2965667,95189.0,95188.0,1.81517138]
[1746090696305,0.2965667,95189.0,95188.0,1.97579254]
[1746090706808,0.2965667,95189.0,95188.0,0.47579254]
[1746090711710,0.2965667,95189.0,95188.0,0.53970972]
[1746090713112,0.4185667,95189.0,95188.0,0.53970972]
[1746090714114,0.2965667,95189.0,95188.0,0.53970972]
[1746090715006,0.2965667,95189.0,95188.0,0.57220972]
[1746090715204,0.4185667,95189.0,95188.0,0.57220972]
[1746090718222,0.2965667,95189.0,95188.0,0.57220972]
[1746090720016,0.2965667,95189.0,95188.0,0.53970972]
[1746090720214,1.45320085,95189.0,95188.0,0.53970972]
[1746090721317,1.57520085,95189.0,95188.0,0.53970972]
[1746090721718,1.57520085,95189.0,95188.0,2.03970972]
[1746090722123,1.45320085,95189.0,95188.0,2.03970972]
[1746090723225,1.45320085,95189.0,95188.0,2.07300972]
[1746090727016,0.05339,95189.0,95188.0,2.07300972]
[1746090727213,0.05339,95189.0,95188.0,2.10640972]
[1746090727513,0.05343,95189.0,95188.0,2.10640972]
[1746090727719,0.05343,95189.0,95188.0,1.94578856]
[1746090728818,0.05339,95189.0,95188.0,1.94578856]
[1746090729623,0.05343,95189.0,95188.0,1.94578856]
[1746090730220,0.05343,95189.0,95188.0,2.06778856]
[1746090732227,0.05343,95189.0,95188.0,1.94578856]
[1746090744049,0.3608,95211.0,95198.0,0.0525139]
[1746090744243,0.00163287,95220.0,95204.0,0.2100436]
[1746090744244,0.03737625,95209.0,95204.0,0.2100436]
[1746090744438,0.03737625,95209.0,95204.0,0.4800436]
[1746090744639,0.03737625,95209.0,95204.0,1.9800436]
[1746090745149,0.12207291,95205.0,95204.0,2.0520436]
[1746090745350,0.12307291,95205.0,95204.0,2.0520436]
[1746090745948,0.12407291,95205.0,95204.0,2.0520436]
[1746090746845,0.12607291,95205.0,95204.0,2.0520436]
[1746090747251,0.12507291,95205.0,95204.0,2.0540436]
[1746090747643,0.12207291,95205.0,95204.0,2.0560436]
[1746090747837,0.12207291,95205.0,95204.0,2.0570436]
[1746090749151,0.12207291,95205.0,95204.0,2.0550436]
[1746090749339,0.12207291,95205.0,95204.0,2.0570436]
[1746090752144,7.291e-05,95205.0,95204.0,2.0570436]
[1746090752848,0.03587291,95205.0,95204.0,2.0570436]
[1746090753250,0.15787291,95205.0,95204.0,2.0570436]
[1746090759260,0.1578,95205.0,95204.0,2.0570436]
[1746090760160,0.0358,95205.0,95204.0,2.0570436]
[1746090761158,0.1578,95205.0,95204.0,2.0570436]
[1746090764461,0.1578,95205.0,95204.0,2.0204436]
[1746090764662,0.1916,95205.0,95204.0,2.0204436]
[1746090772653,1.55827555,95205.0,95204.0,0.4850436]
[1746090772854,1.34823415,95205.0,95204.0,0.4850436]
[1746090773058,1.38353415,95205.0,95204.0,0.4850436]
[1746090774060,1.59357555,95205.0,95204.0,0.4850436]
[1746090774361,1.59357555,95205.0,95204.0,0.4800436]
[1746090774562,1.59357555,95205.0,95204.0,0.4830436]
[1746090775955,1.38353415,95205.0,95204.0,0.4830436]
[1746090776354,1.38357415,95205.0,95204.0,0.4830436]
[1746090776863,1.38357415,95205.0,95204.0,0.4810436]
[1746090777067,1.38357415,95205.0,95204.0,0.4820436]
[1746090787966,1.38357415,95205.0,95204.0,0.5186436]
[1746090788567,1.38357415,95205.0,95204.0,2.0186436]
[1746090788968,1.38357415,95205.0,95204.0,0.5186436]
[1746090790263,1.59361555,95205.0,95204.0,0.5186436]
[1746090790664,1.38357415,95205.0,95204.0,0.5186436]
[1746090791562,1.59361555,95205.0,95204.0,0.5186436]
[1746090792575,1.38357415,95205.0,95204.0,0.5186436]
[1746090798270,1.38357415,95205.0,95204.0,0.67899755]
[1746090800379,0.22694,95205.0,95204.0,0.67899755]
[1746090800583,1.38357415,95205.0,95204.0,0.67899755]
[1746090802487,1.59361555,95205.0,95204.0,0.67899755]
[1746090803687,1.38357415,95205.0,95204.0,0.67899755]
[1746090805989,1.38357415,95205.0,95204.0,0.5186436]
[1746090806881,1.38353415,95205.0,95204.0,0.5186436]
[1746090837304,1.27863415,95205.0,95204.0,0.8794436]
[1746090837506,0.12204,95205.0,95204.0,0.5868436]
[1746090838499,1.27867415,95205.0,95204.0,0.5868436]
[1746090847808,1.27867415,95205.0,95204.0,0.5186436]
[1746090848312,1.48871555,95205.0,95204.0,0.5186436]
[1746090849010,1.55841555,95205.0,95204.0,0.5186436]
[1746090865321,1.55841555,95205.0,95204.0,0.6793211]
[1746090866216,1.34837415,95205.0,95204.0,0.6793211]
[1746090866611,1.55841555,95205.0,95204.0,0.6793211]
[1746090867120,1.34837415,95205.0,95204.0,0.6793211]
[1746090869225,1.34833415,95205.0,95204.0,0.6793211]
[1746090870615,0.122,95205.0,95204.0,0.7143211]
[1746090871122,0.12204,95205.0,95204.0,0.7143211]
[1746090871515,0.122,95205.0,95204.0,0.7143211]
[1746090871823,0.12204,95205.0,95204.0,0.5042775]
[1746090872122,4e-05,95205.0,95204.0,0.7143211]
[1746090873917,0.03614,95205.0,95204.0,0.7143211]
[1746090874115,0.15814,95205.0,95204.0,0.7143211]
[1746090874422,0.15814,95205.0,95204.0,0.5536436]
[1746090881324,0.15814,95205.0,95204.0,2.0536436]
[1746090892841,0.15814,95205.0,95204.0,2.0186436]
[1746090893032,0.19434,95205.0,95204.0,2.0186436]
[1746090901743,0.1943,95205.0,95204.0,2.0186436]
[1746090902751,0.229,95205.0,95204.0,2.0186436]
[1746090909445,1.38563415,95205.0,95204.0,2.0186436]
[1746090909645,1.38563415,95205.0,95204.0,2.0549436]
[1746090910841,1.34943415,95205.0,95204.0,2.0549436]
[1746090911650,0.122,95205.0,95204.0,2.0549436]
[1746090912255,0.122,95205.0,95204.0,2.4157436]
[1746090912446,0.12204,95205.0,95204.0,2.4157436]
[1746090913249,4e-05,95205.0,95204.0,2.4157436]
[1746090913557,0.03934,95209.0,95208.0,0.2100348]
[1746090913752,0.03934,95209.0,95208.0,0.4800348]
[1746090913959,0.0336,95213.0,95212.0,0.210026]
[1746090914155,0.0336,95213.0,95212.0,1.950026]
[1746090914346,1.19023415,95213.0,95212.0,1.950026]
[1746090915155,1.31223415,95213.0,95212.0,1.950026]
[1746090916453,1.31323415,95213.0,95212.0,1.950026]
[1746090917154,1.31223415,95213.0,95212.0,1.950026]
[1746090917544,1.31223415,95213.0,95212.0,1.96030798]
[1746090917853,1.31223415,95213.0,95212.0,1.96130798]
[1746090918053,1.31223415,95213.0,95212.0,2.12192818]
[1746090920355,0.1556,95213.0,95212.0,2.12192818]
[1746090920559,1.31223415,95213.0,95212.0,2.12192818]
[1746090922553,1.31223415,95213.0,95212.0,1.96130798]
[1746090923053,1.31223415,95213.0,95212.0,1.99580798]
[1746090925165,1.19023415,95213.0,95212.0,1.99580798]
[1746090948263,1.31223415,95213.0,95212.0,1.99580798]
[1746090958483,0.03934,95217.0,95216.0,0.2100172]
[1746090958682,0.01575,95217.0,95216.0,0.4500172]
[1746090958887,0.0339,95219.0,95218.0,0.2100128]
[1746090959189,0.0339,95219.0,95218.0,0.4800128]
[1746090959488,1.19053415,95219.0,95218.0,0.4800128]
[1746090959689,1.19053415,95219.0,95218.0,0.5154128]
[1746090960079,1.31253415,95219.0,95218.0,0.5154128]
[1746090960387,1.31353415,95219.0,95218.0,0.5154128]
[1746090960880,1.31353415,95219.0,95218.0,1.0154128]
[1746090961591,1.31453415,95219.0,95218.0,1.0154128]
[1746090962978,1.81457415,95219.0,95218.0,1.0154128]
[1746090963688,1.84917415,95219.0,95218.0,1.0154128]
[1746090964789,1.81457415,95219.0,95218.0,1.0154128]
[1746090964983,1.81457415,95219.0,95218.0,1.0513128]
[1746090965381,1.84917415,95219.0,95218.0,1.0513128]
[1746090966303,1.81457415,95219.0,95218.0,1.0513128]
[1746090966491,1.84917415,95219.0,95218.0,1.0513128]
[1746090968395,1.84917415,95219.0,95218.0,1.0154128]
[1746090970897,1.84913415,95219.0,95218.0,1.0154128]
[1746090971195,1.84917415,95219.0,95218.0,1.0154128]
[1746090976895,0.6579,95219.0,95218.0,1.0154128]
[1746090977197,0.53594,95219.0,95218.0,1.0504128]
[1746090977390,0.5359,95219.0,95218.0,1.0504128]
[1746090977584,0.53594,95219.0,95218.0,1.0504128]
[1746090978192,0.69384,95219.0,95218.0,1.0504128]
[1746090980097,0.57184,95219.0,95218.0,1.0504128]
[1746090982197,0.69384,95219.0,95218.0,1.0504128]
[1746090985199,0.69384,95219.0,95218.0,1.21104655]
[1746090988106,0.69384,95219.0,95218.0,1.17604655]
[1746090990806,0.65794,95219.0,95218.0,1.17604655]
[1746090991103,0.65794,95219.0,95218.0,1.21084655]
[1746090992905,0.65794,95219.0,95218.0,1.0502128]
[1746090994602,0.69274,95219.0,95218.0,1.0502128]
[1746090997114,0.57074,95219.0,95218.0,1.0502128]
[1746090998114,0.69274,95219.0,95218.0,1.0502128]
[1746091003016,0.69274,95219.0,95218.0,1.0154128]
[1746091009308,0.6927,95219.0,95218.0,1.0154128]
[1746091015912,0.6927,95219.0,95218.0,0.8054]
[1746091016111,0.6927,95219.0,95218.0,1.0154128]
[1746091018122,0.5707,95219.0,95218.0,1.0154128]
[1746091018421,0.5359,95219.0,95218.0,1.0154128]
[1746091018624,0.5359,95219.0,95218.0,1.0511128]
[1746091019121,0.001,95226.0,95225.0,0.2099973]
[1746091019319,0.0723,95233.0,95232.0,0.2099819]
[1746091019515,0.0723,95233.0,95232.0,1.9699819]
[1746091019721,1.22893415,95233.0,95232.0,1.9699819]
[1746091020214,1.35093415,95233.0,95232.0,1.9699819]
[1746091020522,1.35393415,95233.0,95232.0,1.9699819]
[1746091021814,1.35793415,95233.0,95232.0,1.9699819]
[1746091022618,0.2013,95233.0,95232.0,1.9699819]
[1746091023015,0.2013,95233.0,95232.0,0.4699819]
[1746091023414,0.0015756,95239.0,95235.0,0.0524932]
[1746091023618,1e-08,95242.0,95241.0,0.209962]
[1746091023816,1e-08,95242.0,95241.0,0.479962]
[1746091024212,0.12204001,95242.0,95241.0,0.515862]
[1746091024412,0.12204001,95242.0,95241.0,2.015862]
[1746091025324,0.12304001,95242.0,95241.0,2.015862]
[1746091026430,0.12300001,95242.0,95241.0,2.015862]
[1746091026728,0.12304001,95242.0,95241.0,2.015862]
[1746091027226,0.12304001,95242.0,95241.0,2.02619629]
[1746091030322,0.12300001,95242.0,95241.0,2.02619629]
[1746091030518,0.12304001,95242.0,95241.0,2.02619629]
[1746091031827,0.0353,95245.0,95244.0,0.2099554]
[1746091032033,0.0353,95245.0,95244.0,0.4499554]
[1746091032631,0.0353,95245.0,95244.0,1.9838554]
[1746091033034,0.0363,95245.0,95244.0,1.9838554]
[1746091033233,0.1593,95245.0,95244.0,1.9838554]
[1746091040637,0.1933,95245.0,95244.0,1.9838554]
[1746091042042,0.1593,95245.0,95244.0,1.9499554]
[1746091042338,0.1593,95245.0,95244.0,1.9844554]
[1746091046742,0.124,95245.0,95244.0,1.9844554]
[1746091047131,0.12404,95245.0,95244.0,1.9844554]
[1746091057549,0.12404,95245.0,95244.0,2.0176554]
[1746091066043,0.15844,95245.0,95244.0,2.0176554]
[1746091071367,1.31507415,95245.0,95244.0,2.0176554]
[1746091076848,1.31503415,95245.0,95244.0,2.0176554]
[1746091082762,1.31503415,95245.0,95244.0,1.9831554]
[1746091082962,1.34883415,95245.0,95244.0,1.9831554]
[1746091083673,1.34883415,95245.0,95244.0,2.0190554]
[1746091083969,1.31503415,95245.0,95244.0,2.0190554]
[1746091099160,0.1584,95245.0,95244.0,2.0190554]
[1746091099362,0.124,95245.0,95244.0,2.0525554]
[1746091102571,0.124,95245.0,95244.0,2.0190554]
[1746091103769,0.1566,95245.0,95244.0,2.0190554]
[1746091131095,1.52318735,95245.0,95244.0,0.4831554]
[1746091131402,1.34633415,95245.0,95244.0,0.4831554]
[1746091134090,1.31323415,95245.0,95244.0,0.4831554]
[1746091134393,1.31323415,95245.0,95244.0,0.5154554]
[1746091136594,1.31327415,95245.0,95244.0,2.0154554]
[1746091138992,1.28067415,95245.0,95244.0,2.0154554]
[1746091142295,1.28067415,95245.0,95244.0,2.17607953]
[1746091147299,1.28067415,95245.0,95244.0,2.0154554]
[1746091151195,1.31377415,95245.0,95244.0,2.0154554]
[1746091152002,1.31377415,95245.0,95244.0,1.9831554]
[1746091152198,1.34557415,95245.0,95244.0,1.9831554]
[1746091152606,1.34557415,95245.0,95244.0,0.4831554]
[1746091155107,1.34557415,95245.0,95244.0,1.9831554]
[1746091166010,1.34557415,95245.0,95244.0,2.0190554]
[1746091166906,1.34553415,95245.0,95244.0,2.0190554]
[1746091167609,1.34553415,95245.0,95244.0,1.9831554]
[1746091169009,1.34553415,95245.0,95244.0,2.0178554]
[1746091172020,1.31373415,95245.0,95244.0,2.0178554]
[1746091184317,1.34973415,95245.0,95244.0,2.0178554]
[1746091185122,1.31373415,95245.0,95244.0,2.0178554]
[1746091191523,1.35013415,95245.0,95244.0,2.0178554]
[1746091191828,1.31373415,95245.0,95244.0,2.0178554]
[1746091192029,1.31373415,95245.0,95244.0,1.96852449]
[1746091192222,1.31373415,95245.0,95244.0,2.17847989]
[1746091192622,1.34803415,95245.0,95244.0,2.17847989]
[1746091194530,1.34803415,95245.0,95244.0,2.0178554]
[1746091197221,1.31373415,95245.0,95244.0,2.0178554]
[1746091202837,1.31373415,95245.0,95244.0,2.17848722]
[1746091204027,1.28063415,95245.0,95244.0,2.17848722]
[1746091206638,1.28063415,95245.0,95244.0,2.0178554]
[1746091212135,1.15863415,95245.0,95244.0,2.0178554]
[1746091216132,1.28063415,95245.0,95244.0,2.0178554]
[1746091219231,1.15863415,95245.0,95244.0,2.0178554]
[1746091219634,0.122,95250.0,95249.0,0.2099444]
[1746091219836,0.00773332,95269.0,95257.0,0.2099268]
[1746091219837,0.0366,95266.0,95257.0,0.2099268]
[1746091220043,0.08028759,95259.0,95257.0,0.4499268]
[1746091220348,0.08028759,95259.0,95257.0,1.9499268]
[1746091220934,0.08028759,95259.0,95257.0,2.0217268]
[1746091221129,0.08028759,95259.0,95257.0,2.09276721]
[1746091221429,0.46787699,95268.0,95267.0,0.2099047]
[1746091221632,7.291e-05,95274.0,95273.0,0.2098915]
[1746091221839,1.15663415,95274.0,95273.0,0.4598915]
[1746091222031,0.01248599,95275.0,95274.0,0.2098893]
[1746091222231,0.01248599,95275.0,95274.0,0.4935893]
[1746091222433,1.16912014,95275.0,95274.0,0.5293893]
[1746091222635,1.16912014,95275.0,95274.0,2.0293893]
[1746091223035,0.01248599,95275.0,95274.0,2.0293893]
[1746091223436,0.01348599,95275.0,95274.0,2.0293893]
[1746091223640,0.01352599,95275.0,95274.0,2.03993027]
[1746091224034,0.01352599,95275.0,95274.0,2.04093027]
[1746091224743,0.01352599,95275.0,95274.0,2.03993027]
[1746091224943,0.01252599,95275.0,95274.0,2.04293027]
[1746091225143,0.01252599,95275.0,95274.0,2.04393027]
[1746091225639,0.01252599,95275.0,95274.0,2.04593027]
[1746091226343,0.01248599,95275.0,95274.0,2.16793027]
[1746091226747,0.01252599,95275.0,95274.0,2.16793027]
[1746091226937,0.01252599,95275.0,95274.0,2.52289027]
[1746091227241,0.01252599,95275.0,95274.0,2.57289027]
[1746091227440,0.01248599,95275.0,95274.0,2.57289027]
[1746091227640,0.01252599,95275.0,95274.0,2.57289027]
[1746091227839,0.01248599,95275.0,95274.0,2.57289027]
[1746091228044,0.01252599,95275.0,95274.0,2.57289027]
[1746091228245,0.01252599,95275.0,95274.0,2.63373027]
[1746091228442,0.01252599,95275.0,95274.0,2.58373027]
[1746091228643,0.01252599,95275.0,95274.0,2.64669027]
[1746091229144,0.13452599,95275.0,95274.0,2.52469027]
[1746091230042,0.13452599,95275.0,95274.0,2.46173027]
[1746091230242,0.13452599,95275.0,95274.0,2.52469027]
[1746091230444,0.13452599,95275.0,95274.0,2.26946426]
[1746091232046,0.13452599,95275.0,95274.0,2.62442426]
[1746091232449,0.13448599,95275.0,95274.0,2.62442426]
[1746091232749,0.13452599,95275.0,95274.0,2.62442426]
[1746091233244,0.01252599,95275.0,95274.0,2.62442426]
[1746091233846,0.0015,95290.0,95274.0,2.62442426]
[1746091233847,0.113,95300.0,95274.0,2.31657496]
[1746091234048,0.013,95300.0,95299.0,0.5706343]
[1746091234244,0.013,95300.0,95299.0,0.9455663]
[1746091234450,0.013,95300.0,95299.0,2.5085263]
[1746091234742,0.01304,95300.0,95299.0,2.5085263]
[1746091235351,0.013,95300.0,95299.0,2.5085263]
[1746091235546,0.01304,95300.0,95299.0,2.5085263]
[1746091235741,0.01304,95300.0,95299.0,2.5105263]
[1746091236253,0.01304,95300.0,95299.0,2.6325263]
[1746091236441,0.013,95300.0,95299.0,2.6325263]
[1746091236644,0.01304,95300.0,95299.0,2.6325263]
[1746091237448,0.01304,95300.0,95299.0,2.7001263]
[1746091241447,0.01304,95300.0,95299.0,2.7000863]
[1746091243244,0.01304,95300.0,95299.0,2.6371663]
[1746091243461,0.01304,95300.0,95299.0,2.5275543]
[1746091243647,0.01304,95300.0,95299.0,2.4646343]
[1746091243853,0.01304,95300.0,95299.0,2.5275543]
[1746091244155,0.01304,95300.0,95299.0,2.4055543]
[1746091247159,0.01304,95300.0,95299.0,2.5104863]
[1746091247353,0.01304,95300.0,95299.0,2.5459863]
[1746091248850,0.01304,95300.0,95299.0,2.5104863]
[1746091249051,0.01304,95300.0,95299.0,2.4055543]
[1746091249560,0.01304,95300.0,95299.0,2.5104863]
[1746091249754,0.01304,95300.0,95299.0,2.5443863]
[1746091250959,0.01304,95300.0,95299.0,2.5104863]
[1746091253252,0.01304,95300.0,95299.0,2.8712863]
[1746091253457,0.013,95300.0,95299.0,2.8712863]
[1746091254262,0.01304,95300.0,95299.0,2.9912863]
[1746091254464,0.01304,95300.0,95299.0,2.9922863]
[1746091255157,0.01304,95300.0,95299.0,2.8702863]
[1746091255358,0.01304,95300.0,95299.0,2.8712863]
[1746091256361,0.01304,95300.0,95299.0,2.9932863]
[1746091257067,0.01304,95300.0,95299.0,2.8883543]
[1746091258254,0.01304,95300.0,95299.0,2.7663543]
[1746091260362,0.01304,95300.0,95299.0,2.7034343]
[1746091260565,0.01304,95300.0,95299.0,2.7671543]
[1746091261263,0.13504,95300.0,95299.0,2.7671543]
[1746091265459,0.13504,95300.0,95299.0,2.7034343]
[1746091265661,0.13504,95300.0,95299.0,2.7671543]
[1746091266565,0.13504,95300.0,95299.0,2.8720863]
[1746091267264,0.13504,95300.0,95299.0,3.20405236]
[1746091267467,0.135,95300.0,95299.0,3.20405236]
[1746091267668,0.13504,95300.0,95299.0,3.20405236]
[1746091268160,0.01304,95300.0,95299.0,3.20405236]
[1746091269060,0.13504,95300.0,95299.0,3.61985236]
[1746091270265,0.01304,95300.0,95299.0,3.61985236]
[1746091271168,0.01304,95300.0,95299.0,3.51492036]
[1746091272268,0.01304,95300.0,95299.0,3.61985236]
[1746091274458,0.013,95300.0,95299.0,3.61985236]
[1746091274660,0.01304,95300.0,95299.0,3.59062941]
[1746091275071,0.04614,95300.0,95299.0,3.59062941]
[1746091276063,0.04614,95300.0,95299.0,3.48569741]
[1746091276468,0.01466813,95358.0,95299.0,4.80622311]
[1746091276669,0.01466813,95358.0,95324.0,0.9313792]
[1746091276859,0.01466813,95358.0,95324.0,1.2750992]
[1746091277064,0.00154,95325.0,95324.0,2.8250992]
[1746091277272,0.00154,95325.0,95324.0,2.95478947]
[1746091277459,0.0015,95325.0,95324.0,2.89106947]
[1746091277666,0.00154,95325.0,95324.0,2.95478947]
[1746091278466,0.0015,95325.0,95324.0,3.13308947]
[1746091278664,0.00154,95325.0,95324.0,3.31936947]
[1746091278868,0.0015,95325.0,95324.0,3.1689967]
[1746091279070,0.1235,95325.0,95324.0,2.83678947]
[1746091279273,0.12354,95325.0,95324.0,2.83678947]
[1746091280072,0.20981,95347.0,95324.0,3.15131027]
[1746091280276,0.0341,95330.0,95324.0,2.06599027]
[1746091280477,0.0341,95330.0,95329.0,0.9313682]
[1746091280777,0.03414,95330.0,95329.0,1.2313682]
[1746091281168,0.03414,95330.0,95329.0,2.7313682]
[1746091281779,0.03414,95330.0,95329.0,2.7323682]
[1746091282276,0.03414,95330.0,95329.0,2.7970882]
[1746091283663,0.03414,95330.0,95329.0,3.2128882]
[1746091283970,0.03414,95330.0,95329.0,3.1491682]